bitfinex-derivatives/quotes_SOLF0:USTF0_20250527
["timestamp","ask_amount","ask_price","bid_price","bid_amount"]
[1748385398836,2.44893334,176.43,176.37,0.04229439]
[1748385399041,29.02,176.44,176.37,0.04229439]
[1748385399334,2.44738954,176.43,176.37,0.04229439]
[1748385399540,5.6667,176.38,176.37,0.04229439]
[1748385408040,30.9612,176.47,176.37,0.04229439]
[1748385408343,30.9612,176.47,176.38,28.98]
[1748385408344,2.44607185,176.46,176.38,28.98]
[1748385408535,8.9668302,176.46,176.4,0.0395821]
[1748385408830,5.6657,176.41,176.4,0.0395821]
[1748385415346,5.6655,176.42,176.4,0.0395821]
[1748385416841,28.98,176.46,176.4,0.0395821]
[1748385417043,5.6657,176.41,176.4,0.0395821]
[1748385417451,5.6655,176.42,176.4,0.0395821]
[1748385417645,28.98,176.46,176.4,5.7055821]
[1748385417845,6.52075835,176.47,176.4,5.7055821]
[1748385418044,6.52075835,176.47,176.41,5.6655]
[1748385418250,3.9179,176.48,176.4,0.0395821]
[1748385418549,5.664,176.47,176.41,28.98]
[1748385418751,6.52075835,176.5,176.44,5.6645]
[1748385419048,6.52075835,176.5,176.45,0.03763094]
[1748385419649,5.6643,176.46,176.45,0.03763094]
[1748385420046,6.52075835,176.5,176.45,0.03763094]
[1748385420242,28.98,176.52,176.45,0.03763094]
[1748385420559,2.43995245,176.51,176.45,0.03763094]
[1748385421248,28.98,176.52,176.45,0.03763094]
[1748385421550,2.43997604,176.51,176.45,0.03763094]
[1748385421750,5.6641,176.46,176.45,0.03763094]
[1748385424661,5.6639,176.47,176.45,0.03763094]
[1748385424948,28.98,176.52,176.45,0.03763094]
[1748385425346,1.9249,176.54,176.45,0.03763094]
[1748385425545,1.9249,176.54,176.47,5.6637]
[1748385425746,1.9249,176.54,176.49,0.03766508]
[1748385426250,5.6628,176.5,176.49,0.03766508]
[1748385439753,5.6653,176.43,176.34,62.0]
[1748385439954,6.52075835,176.47,176.39,518.44]
[1748385440154,6.52075835,176.47,176.39,28.92]
[1748385440351,5.6657,176.42,176.39,28.92]
[1748385440848,5.6658,176.41,176.39,28.95906413]
[1748385441259,0.04295535,176.42,176.39,28.95906413]
[1748385442662,5.70845535,176.42,176.39,34.62516413]
[1748385443466,0.04295535,176.42,176.4,5.6659]
[1748385443651,0.04295535,176.42,176.39,28.95906413]
[1748385444056,5.70835535,176.42,176.39,34.62526413]
[1748385444464,0.04295535,176.42,176.41,5.6657]
[1748385444656,0.04295535,176.42,176.39,28.95906413]
[1748385445956,0.04295535,176.42,176.4,5.6659]
[1748385451565,0.04295535,176.42,176.39,28.95906413]
[1748385452058,5.70855535,176.42,176.39,34.62536413]
[1748385452265,0.04295535,176.42,176.39,34.62536413]
[1748385452762,0.04295535,176.42,176.41,5.6657]
[1748385453173,28.92,176.53,176.39,28.95906413]
[1748385453358,2.44605417,176.52,176.39,28.92]
[1748385453559,2.44612256,176.51,176.39,28.92]
[1748385453759,5.6643,176.46,176.42,5.6653]
[1748385454066,6.52075835,176.5,176.43,28.92]
[1748385454366,6.52075835,176.5,176.45,0.03718413]
[1748385454367,2.44619524,176.49,176.45,0.03718413]
[1748385454562,5.6641,176.46,176.45,0.03718413]
[1748385467774,5.6639,176.47,176.45,0.03718413]
[1748385468071,46.76455835,176.53,176.45,0.03718413]
[1748385468264,2.44897774,176.52,176.45,0.03718413]
[1748385468468,5.664,176.47,176.45,0.03718413]
[1748385469878,5.6641,176.46,176.45,0.03718413]
[1748385470071,46.76455835,176.53,176.45,0.03718413]
[1748385470271,5.6641,176.47,176.45,0.03718413]
[1748385470471,46.76455835,176.53,176.45,0.03718413]
[1748385470667,2.44817533,176.52,176.45,0.03718413]
[1748385470867,5.6633,176.49,176.45,0.03718413]
[1748385471068,35.44075835,176.53,176.45,0.03718413]
[1748385471266,2.44823594,176.52,176.47,5.6636]
[1748385471474,5.663,176.5,176.47,5.6636]
[1748385471675,35.44075835,176.53,176.45,0.03718413]
[1748385471875,2.44844462,176.52,176.47,5.6638]
[1748385472071,5.6631,176.5,176.47,5.6638]
[1748385472477,35.44075835,176.53,176.47,5.6638]
[1748385472778,5.6632,176.49,176.46,5.664]
[1748385473178,5.6632,176.49,176.45,0.03718413]
[1748385473881,5.6632,176.49,176.46,5.6641]
[1748385476782,5.6635,176.48,176.45,5.70148413]
[1748385477084,6.52075835,176.52,176.45,0.03718413]
[1748385477272,2.44997355,176.51,176.45,0.03718413]
[1748385477584,2.45021252,176.5,176.45,0.03718413]
[1748385477777,6.52075835,176.52,176.45,0.03718413]
[1748385477980,5.6641,176.46,176.45,0.03718413]
[1748385478781,5.6639,176.47,176.45,0.03718413]
[1748385479485,5.6639,176.47,176.45,5.70158413]
[1748385479684,35.44075835,176.53,176.45,5.70158413]
[1748385479685,5.6636,176.48,176.45,5.70158413]
[1748385479884,28.92,176.53,176.45,0.03718413]
[1748385480077,2.45048933,176.52,176.47,5.6638]
[1748385480284,2.45063048,176.51,176.45,0.03718413]
[1748385480482,2.45063048,176.5,176.45,0.03718413]
[1748385480684,2.45063048,176.49,176.45,0.03718413]
[1748385480884,28.92,176.53,176.46,5.664]
[1748385481085,2.45079885,176.52,176.46,5.664]
[1748385481280,5.663,176.5,176.47,5.6638]
[1748385481480,2.45090797,176.49,176.47,5.6638]
[1748385481680,28.92,176.53,176.47,5.6638]
[1748385481885,2.45110745,176.52,176.47,5.6638]
[1748385482081,2.45110745,176.51,176.47,5.6638]
[1748385482281,2.45110745,176.5,176.47,5.6638]
[1748385482476,28.92,176.53,176.47,5.6638]
[1748385482683,2.45136559,176.52,176.45,0.03718413]
[1748385482877,2.45138179,176.51,176.45,0.03718413]
[1748385483183,5.6633,176.49,176.46,5.6641]
[1748385483585,28.92,176.53,176.46,5.6641]
[1748385483885,2.45162698,176.52,176.46,5.6641]
[1748385484083,28.92,176.53,176.46,5.6641]
[1748385484282,2.45161074,176.52,176.46,5.6641]
[1748385484483,5.6633,176.49,176.46,5.6641]
[1748385484687,28.92,176.53,176.46,5.6641]
[1748385484881,2.45155305,176.52,176.46,5.6641]
[1748385485185,5.6634,176.49,176.46,5.6641]
[1748385486389,28.92,176.53,176.45,0.03718413]
[1748385486687,6.52075835,176.54,176.45,0.03718413]
[1748385486879,5.6626,176.51,176.48,5.6633]
[1748385487076,5.6626,176.51,176.48,5.70189238]
[1748385487481,5.6629,176.5,176.48,5.70189238]
[1748385487676,6.52075835,176.54,176.48,0.03859238]
[1748385487883,5.6632,176.49,176.48,0.03859238]
[1748385488089,6.52075835,176.54,176.48,0.03859238]
[1748385488288,2.45132964,176.53,176.48,0.03859238]
[1748385488490,5.6631,176.5,176.48,0.03859238]
[1748385489687,5.6632,176.49,176.48,0.03859238]
[1748385491585,8.11519553,176.49,176.48,0.03859238]
[1748385491786,5.6632,176.49,176.48,0.03859238]
[1748385491983,8.11558158,176.49,176.48,0.03859238]
[1748385492591,5.6632,176.49,176.48,0.03859238]
[1748385492790,8.11572939,176.49,176.48,0.03859238]
[1748385493395,5.6632,176.49,176.48,0.03859238]
[1748385493705,8.1159092,176.49,176.48,0.03859238]
[1748385494287,5.6632,176.49,176.48,0.03859238]
[1748385494488,8.11608717,176.49,176.48,0.03859238]
[1748385495493,8.11687213,176.49,176.48,0.03859238]
[1748385495695,8.11698512,176.49,176.48,0.03859238]
[1748385496896,6.52075835,176.51,176.39,28.86]
[1748385497098,6.52075835,176.46,176.39,28.86]
[1748385497391,5.6654,176.43,176.4,5.6659]
[1748385497786,5.6654,176.43,176.4,5.70779625]
[1748385497991,5.70468886,176.43,176.4,5.70779625]
[1748385499692,5.6654,176.42,176.4,5.70779625]
[1748385499897,0.03928886,176.43,176.4,5.70779625]
[1748385500486,5.70458886,176.43,176.4,5.70779625]
[1748385501899,5.6655,176.42,176.4,5.70779625]
[1748385503292,5.6655,176.42,176.4,0.04189625]
[1748385504191,5.70448886,176.43,176.4,5.70779625]
[1748385504403,0.03928886,176.43,176.4,0.04189625]
[1748385504701,0.03928886,176.43,176.42,5.6654]
[1748385513601,0.03928886,176.43,176.42,34.5254]
[1748385516007,0.03928886,176.43,176.42,38.68392584]
[1748385517906,0.03928886,176.43,176.42,34.5254]
[1748385519801,5.6621,176.53,176.42,41.01844694]
[1748385520005,1.9391,176.56,176.42,35.35844694]
[1748385520312,5.6619,176.53,176.42,35.35844694]
[1748385520500,2.4521116,176.52,176.42,35.35844694]
[1748385520700,5.6619,176.53,176.45,0.04261477]
[1748385520906,5.6619,176.53,176.46,28.86]
[1748385521211,5.6619,176.53,176.47,110.46]
[1748385521408,5.6616,176.54,176.47,110.46]
[1748385521609,1.9391,176.56,176.49,0.04364065]
[1748385521906,2.44987223,176.55,176.5,28.86]
[1748385522104,32.7212,176.61,176.51,0.03680988]
[1748385522304,2.44978813,176.6,176.51,0.03680988]
[1748385522506,2.44978813,176.59,176.51,0.03680988]
[1748385522709,2.44978813,176.58,176.51,6.53525682]
[1748385522913,28.86,176.64,176.53,0.03642421]
[1748385523107,5.6596,176.6,176.57,5.69888648]
[1748385523306,6.49844694,176.65,176.57,0.03848648]
[1748385523506,2.44772049,176.64,176.57,0.03848648]
[1748385523709,2.44772049,176.63,176.57,0.03848648]
[1748385523911,5.6596,176.6,176.57,0.03848648]
[1748385524214,6.49844694,176.65,176.57,0.03848648]
[1748385524408,2.44511411,176.64,176.57,0.03848648]
[1748385524718,2.44511411,176.63,176.57,0.03848648]
[1748385525009,2.44302219,176.62,176.57,0.03848648]
[1748385525213,5.66,176.59,176.57,0.03848648]
[1748385525414,6.49844694,176.65,176.57,0.03848648]
[1748385525614,2.44300464,176.64,176.57,0.03848648]
[1748385525813,6.49844694,176.65,176.57,0.03848648]
[1748385525814,5.6603,176.58,176.57,0.03848648]
[1748385558951,5.66,176.58,176.45,28.8]
[1748385559149,4.15494639,176.5,176.45,139.12]
[1748385559339,4.15494639,176.5,176.42,4.15494639]
[1748385559543,4.15494639,176.5,176.43,139.12]
[1748385559937,0.03820028,176.48,176.45,0.03795134]
[1748385560145,5.664,176.47,176.45,0.03795134]
[1748385560642,5.6641,176.46,176.45,0.03795134]
[1748385581953,9.82563198,176.46,176.45,0.03795134]
[1748385582154,5.6641,176.46,176.45,0.03795134]
[1748385582354,9.82563198,176.46,176.45,0.03795134]
[1748385587467,5.6641,176.46,176.45,0.03795134]
[1748385588860,5.6639,176.47,176.45,0.03795134]
[1748385589165,4.19973226,176.48,176.45,0.03795134]
[1748385589759,5.6641,176.46,176.45,0.03795134]
[1748385601278,5.6639,176.47,176.45,0.03795134]
[1748385601479,0.03820028,176.48,176.45,0.03795134]
[1748385603887,5.6638,176.47,176.45,0.03795134]
[1748385604678,5.6641,176.46,176.45,0.03795134]
[1748385606284,5.6639,176.47,176.45,0.03795134]
[1748385606491,0.03820028,176.48,176.45,0.03795134]
[1748385606691,2.45053536,176.47,176.45,0.03795134]
[1748385606896,2.4506321,176.46,176.45,0.03795134]
[1748385607695,2.45079545,176.46,176.45,0.03795134]
[1748385608291,0.03820028,176.48,176.45,0.03795134]
[1748385608782,5.70190028,176.48,176.45,5.70225134]
[1748385610199,5.6638,176.47,176.45,5.70225134]
[1748385610494,0.03820028,176.48,176.45,0.03795134]
[1748385610691,5.6641,176.46,176.45,0.03795134]
[1748385614689,5.6639,176.47,176.45,0.03795134]
[1748385614890,0.03820028,176.48,176.45,0.03795134]
[1748385615198,2.45162038,176.47,176.45,0.03795134]
[1748385615499,0.03820028,176.48,176.45,0.03795134]
[1748385615696,2.45157964,176.47,176.45,0.03795134]
[1748385615900,5.6641,176.46,176.45,0.03795134]
[1748385616200,0.03820028,176.48,176.45,0.03795134]
[1748385616398,2.45167941,176.47,176.45,0.03795134]
[1748385616603,5.6638,176.47,176.45,0.03795134]
[1748385616995,0.03820028,176.48,176.45,0.03795134]
[1748385617301,2.45152389,176.47,176.45,0.03795134]
[1748385617603,0.03820028,176.48,176.45,0.03795134]
[1748385617802,5.6641,176.46,176.45,0.03795134]
[1748385626806,8.11733555,176.46,176.45,0.03795134]
[1748385627303,5.6641,176.46,176.45,0.03795134]
[1748385627708,8.11755736,176.46,176.45,0.03795134]
[1748385628809,5.6641,176.46,176.45,0.03795134]
[1748385629107,8.11774841,176.46,176.45,0.03795134]
[1748385630111,8.11801978,176.46,176.45,0.03795134]
[1748385631102,8.11857217,176.46,176.45,0.03795134]
[1748385632414,8.11900486,176.46,176.45,0.03795134]
[1748385632615,5.6641,176.46,176.45,0.03795134]
[1748385632810,8.11901962,176.46,176.45,0.03795134]
[1748385634209,5.6641,176.46,176.45,0.03795134]
[1748385634409,8.1191793,176.46,176.45,0.03795134]
[1748385634809,2.4550793,176.46,176.45,0.03795134]
[1748385635206,2.45512174,176.46,176.45,0.03795134]
[1748385635815,5.6639,176.47,176.45,0.03795134]
[1748385636014,2.45512174,176.46,176.45,0.03795134]
[1748385636207,8.11922174,176.46,176.45,0.03795134]
[1748385636410,5.6641,176.46,176.45,0.03795134]
[1748385636606,8.11921871,176.46,176.45,0.03795134]
[1748385636812,0.03820028,176.48,176.45,0.03795134]
[1748385637216,0.03820028,176.48,176.46,4.15860118]
[1748385637913,0.03820028,176.48,176.47,5.6638]
[1748385639818,0.03820028,176.48,176.47,34.4038]
[1748385644618,0.03820028,176.48,176.47,38.56240118]
[1748385646813,5.662,176.53,176.5,5.6628]
[1748385647220,5.662,176.53,176.51,5.6625]
[1748385647422,5.6616,176.54,176.51,5.6625]
[1748385647825,5.6616,176.54,176.51,5.70408585]
[1748385650123,5.6619,176.53,176.51,5.70408585]
[1748385651123,5.6617,176.54,176.51,5.70408585]
[1748385652624,5.6619,176.53,176.51,5.70408585]
[1748385653826,5.6622,176.52,176.51,0.04158585]
[1748385654213,32.89860118,176.57,176.51,0.04158585]
[1748385654415,32.89860118,176.57,176.51,5.70398585]
[1748385654815,32.89860118,176.57,176.51,0.04158585]
[1748385655327,5.6621,176.53,176.51,5.70408585]
[1748385656326,5.6614,176.55,176.53,5.6618]
[1748385656629,2.44300998,176.58,176.52,28.68]
[1748385656931,2.44300998,176.58,176.53,4.15860118]
[1748385657128,8.10350998,176.58,176.55,5.661]
[1748385657427,8.10350998,176.58,176.55,5.7013363]
[1748385657621,2.44300998,176.58,176.55,5.7013363]
[1748385657828,5.6607,176.57,176.55,0.0403363]
[1748385658223,5.6609,176.56,176.55,0.0403363]
[1748385658728,5.6608,176.57,176.55,0.0403363]
[1748385659534,5.6609,176.56,176.55,0.0403363]
[1748385659931,2.44300998,176.58,176.55,0.0403363]
[1748385660127,5.6606,176.57,176.55,0.0403363]
[1748385660325,2.44300998,176.58,176.55,0.0403363]
[1748385661231,5.6609,176.56,176.55,0.0403363]
[1748385670643,9.81950118,176.56,176.55,0.0403363]
[1748385670944,5.663,176.5,176.48,28.68]
[1748385673645,5.663,176.5,176.48,34.3434]
[1748385673839,0.03795835,176.51,176.48,28.68]
[1748385674235,0.03795835,176.51,176.49,5.6631]
[1748385675247,0.03795835,176.51,176.5,5.6628]
[1748385677644,0.03795835,176.51,176.48,28.68]
[1748385677645,0.03795835,176.51,176.49,5.663]
[1748385678048,5.70055835,176.51,176.48,34.3433]
[1748385678248,5.70055835,176.51,176.48,28.68]
[1748385678647,0.03795835,176.51,176.48,28.68]
[1748385679251,5.6631,176.49,176.48,28.68]
[1748385680151,5.6631,176.49,176.47,0.03820744]
[1748385680750,4.15860118,176.49,176.43,28.64]
[1748385680942,4.15860118,176.49,176.4,4.15860118]
[1748385680943,4.15860118,176.47,176.4,28.64]
[1748385681147,5.6653,176.43,176.4,28.64]
[1748385681554,4.15860118,176.45,176.4,28.64]
[1748385681747,5.665,176.44,176.41,5.70473767]
[1748385681952,5.70090784,176.44,176.41,5.70473767]
[1748385685556,5.70090784,176.44,176.42,5.6654]
[1748385686055,0.03590784,176.44,176.42,5.6654]
[1748385686847,5.70070784,176.44,176.42,5.6654]
[1748385694661,5.70070784,176.44,176.41,5.70473767]
[1748385694868,5.6654,176.42,176.41,0.03913767]
[1748385703165,0.03590784,176.44,176.41,0.03913767]
[1748385703369,5.6651,176.43,176.41,0.03913767]
[1748385705072,5.6651,176.43,176.41,5.70483767]
[1748385705273,5.6654,176.42,176.41,0.03913767]
[1748385705970,5.6652,176.43,176.41,0.03913767]
[1748385706765,0.03590784,176.44,176.41,0.03913767]
[1748385707774,5.70070784,176.44,176.41,5.70473767]
[1748385708174,5.6651,176.43,176.41,0.03913767]
[1748385710478,5.6654,176.42,176.41,0.03913767]
[1748385722083,5.6652,176.43,176.41,0.03913767]
[1748385722386,0.03590784,176.44,176.41,0.03913767]
[1748385724685,5.6651,176.43,176.41,0.03913767]
[1748385724881,0.03590784,176.44,176.41,0.03913767]
[1748385725887,5.6654,176.42,176.41,0.03913767]
[1748385737698,8.1203091,176.42,176.41,0.03913767]
[1748385738291,8.12028619,176.42,176.41,0.03913767]
[1748385739389,5.6654,176.42,176.41,0.03913767]
[1748385739595,8.12064697,176.42,176.41,0.03913767]
[1748385739796,8.12061509,176.42,176.41,0.03913767]
[1748385740691,8.12071215,176.42,176.41,0.03913767]
[1748385741192,5.6654,176.42,176.41,0.03913767]
[1748385741699,8.12074011,176.42,176.41,0.03913767]
[1748385742398,8.12067507,176.42,176.41,0.03913767]
[1748385742801,5.6654,176.42,176.41,0.03913767]
[1748385751709,8.12050126,176.42,176.41,0.03913767]
[1748385752004,5.6654,176.42,176.41,0.03913767]
[1748385752305,8.12046348,176.42,176.41,0.03913767]
[1748385754202,8.1197072,176.42,176.41,0.03913767]
[1748385755109,8.11886786,176.42,176.41,0.03913767]
[1748385755613,5.6673,176.36,176.35,28.6]
[1748385756099,5.6673,176.36,176.33,5.668]
[1748385756706,5.70588795,176.36,176.33,5.70982002]
[1748385757008,0.03858795,176.36,176.33,5.70982002]
[1748385757210,0.03858795,176.36,176.34,5.6679]
[1748385757407,4.16187455,176.44,176.34,4.16187455]
[1748385757605,8.12276427,176.43,176.39,5.6661]
[1748385757805,2.45740891,176.42,176.39,5.6661]
[1748385758001,8.12276427,176.43,176.38,28.6]
[1748385758407,0.03748105,176.42,176.39,0.03924782]
[1748385758609,0.03748105,176.42,176.4,5.666]
[1748385759012,0.03748105,176.42,176.39,0.03924782]
[1748385759310,0.03748105,176.42,176.41,5.6657]
[1748385760818,2.45746427,176.43,176.42,5.6654]
[1748385761012,28.6,176.52,176.42,32.76187455]
[1748385761212,5.663,176.5,176.44,4.16187455]
[1748385761417,4.16187455,176.49,176.43,2.0257]
[1748385761714,5.6644,176.45,176.44,0.04202904]
[1748385761914,5.6644,176.45,176.43,0.03753771]
[1748385762110,0.04258212,176.46,176.43,0.03753771]
[1748385762322,5.6648,176.44,176.43,0.03753771]
[1748385765007,5.6646,176.45,176.43,0.03753771]
[1748385765604,5.6648,176.44,176.43,0.03753771]
[1748385792048,9.82617165,176.44,176.43,0.03753771]
[1748385792452,5.6648,176.44,176.43,0.03753771]
[1748385796454,28.58,176.44,176.34,28.58]
[1748385796658,4.16137165,176.39,176.34,28.58]
[1748385797150,5.6672,176.37,176.34,34.2478]
[1748385797346,5.70399578,176.37,176.34,34.28854804]
[1748385798045,5.70399578,176.37,176.35,5.6675]
[1748385800054,5.70399578,176.37,176.34,34.28864804]
[1748385804355,0.03679578,176.37,176.34,28.62074804]
[1748385805857,0.03679578,176.37,176.34,34.28854804]
[1748385806553,0.03679578,176.37,176.35,5.6675]
[1748385806554,5.70389578,176.37,176.35,5.6675]
[1748385806761,0.03679578,176.37,176.34,28.62074804]
[1748385807163,0.03679578,176.37,176.35,5.6673]
[1748385809258,0.03679578,176.37,176.36,5.6673]
[1748385811166,28.58,176.44,176.39,5.6661]
[1748385811563,5.6656,176.42,176.39,5.6661]
[1748385811763,37.02621804,176.47,176.36,1.9474]
[1748385812267,5.70097049,176.43,176.4,0.0434944]
[1748385812569,5.70097049,176.43,176.4,5.7093944]
[1748385813465,0.03577049,176.43,176.4,0.0434944]
[1748385813763,28.54,176.51,176.4,0.0434944]
[1748385813968,28.54,176.51,176.38,28.54]
[1748385814768,28.54,176.51,176.43,0.03764898]
[1748385814963,5.6641,176.46,176.43,5.70254898]
[1748385816765,28.54,176.51,176.43,5.70254898]
[1748385817865,28.54,176.51,176.43,0.03764898]
[1748385817866,5.6645,176.45,176.43,0.03764898]
[1748385820272,5.6648,176.44,176.43,0.03764898]
[1748385838377,30.5545,176.53,176.43,28.53764898]
[1748385839183,5.6633,176.49,176.43,28.53764898]
[1748385839374,30.5545,176.53,176.43,28.53764898]
[1748385839679,5.663,176.5,176.47,5.6636]
[1748385839879,5.663,176.5,176.47,5.70460701]
[1748385840878,5.6633,176.49,176.47,0.04100701]
[1748385841079,30.5545,176.53,176.47,0.04100701]
[1748385841475,30.5545,176.53,176.39,6.50541804]
[1748385841476,6.50541804,176.5,176.4,28.5]
[1748385841681,6.50541804,176.47,176.4,28.5]
[1748385841980,5.6654,176.43,176.4,34.1658]
[1748385842481,5.70501162,176.43,176.4,34.20487001]
[1748385842882,0.03961162,176.43,176.4,28.53907001]
[1748385843482,0.03961162,176.43,176.41,5.6657]
[1748385845186,5.70471162,176.43,176.41,5.6657]
[1748385847178,0.03961162,176.43,176.41,5.6657]
[1748385848488,0.03961162,176.43,176.4,34.20497001]
[1748385848489,5.70471162,176.43,176.4,34.20497001]
[1748385849085,5.70471162,176.43,176.4,28.53907001]
[1748385849988,0.03961162,176.43,176.41,5.6657]
[1748385850492,5.70481162,176.43,176.4,34.20497001]
[1748385851090,5.70481162,176.43,176.41,5.6657]
[1748385852685,5.70481162,176.43,176.4,28.53907001]
[1748385852890,5.70481162,176.43,176.4,34.20497001]
[1748385854089,5.70481162,176.43,176.41,5.6656]
[1748385857896,0.03961162,176.43,176.41,5.6656]
[1748385859098,5.70491162,176.43,176.41,5.6656]
[1748385859504,5.70491162,176.43,176.4,34.20487001]
[1748385859909,5.6654,176.42,176.4,34.20487001]
[1748385860206,0.03961162,176.43,176.4,28.53907001]
[1748385860607,5.6654,176.42,176.4,28.53907001]
[1748385862010,5.6654,176.42,176.4,34.20497001]
[1748385862614,5.6654,176.42,176.4,28.53907001]
[1748385863812,5.6654,176.42,176.4,34.20497001]
[1748385865319,5.70481162,176.43,176.4,34.20497001]
[1748385865515,0.03961162,176.43,176.42,5.6654]
[1748385865816,28.5,176.49,176.4,28.53907001]
[1748385866017,28.5,176.49,176.41,5.6654]
[1748385866411,5.665,176.44,176.41,5.6654]
[1748385867416,5.665,176.44,176.42,5.6654]
[1748385874827,28.5,176.49,176.43,5.665]
[1748385874828,5.6646,176.45,176.43,5.665]
[1748385875629,5.6646,176.45,176.42,5.70249269]
[1748385876826,5.6646,176.45,176.43,5.665]
[1748385877020,5.6642,176.46,176.43,5.665]
[1748385878315,5.6645,176.45,176.43,5.665]
[1748385878623,4.16066934,176.47,176.44,5.6647]
[1748385879023,30.3674,176.52,176.42,0.03719269]
[1748385879223,4.16066934,176.5,176.42,0.03719269]
[1748385879424,4.16066934,176.5,176.45,5.6642]
[1748385879724,4.16066934,176.53,176.46,0.03712983]
[1748385880128,5.6624,176.52,176.46,0.03712983]
[1748385880624,5.6624,176.52,176.49,5.6629]
[1748385881527,5.6625,176.51,176.48,5.6633]
[1748385889530,28.48,176.55,176.49,5.6631]
[1748385889732,28.46,176.58,176.5,0.03722716]
[1748385890127,5.6615,176.54,176.5,0.03722716]
[1748385890329,28.46,176.58,176.5,0.03722716]
[1748385890733,5.6612,176.56,176.52,5.6621]
[1748385891035,3.7212,176.59,176.52,5.70098615]
[1748385891633,3.7212,176.59,176.52,0.03888615]
[1748385892433,5.6618,176.54,176.52,0.03888615]
[1748385892836,3.7212,176.59,176.52,0.03888615]
[1748385893339,5.6619,176.53,176.52,0.03888615]
[1748385914271,28.46,176.57,176.52,0.03888615]
[1748385914472,3.7212,176.59,176.52,0.03888615]
[1748385915574,28.44,176.6,176.52,0.03888615]
[1748385915962,5.6611,176.56,176.52,5.70088615]
[1748385916869,16.9656,176.74,176.52,116.21551923]
[1748385917067,16.9656,176.74,176.57,0.03825768]
[1748385917068,34.91663308,176.68,176.57,0.03825768]
[1748385917271,6.49663308,176.65,176.61,0.04221751]
[1748385917471,5.659,176.62,176.61,0.04221751]
[1748385927187,34.059,176.62,176.61,0.04221751]
[1748385934688,34.059,176.62,176.61,1.751e-05]
[1748385934891,34.89663308,176.62,176.53,1.8947]
[1748385935787,0.04113457,176.59,176.56,0.0366135]
[1748385935987,5.6606,176.57,176.56,0.0366135]
[1748385946501,34.0604,176.58,176.56,5.6973135]
[1748385947000,28.4,176.58,176.56,5.6973135]
[1748385949002,28.4,176.58,176.57,5.6606]
[1748385949196,0.04113457,176.59,176.57,5.6606]
[1748385949997,0.04113457,176.59,176.56,0.0366135]
[1748385950698,5.6606,176.57,176.56,0.0366135]
[1748385964108,5.6604,176.58,176.56,0.0366135]
[1748385964510,0.04113457,176.59,176.57,5.6606]
[1748385964905,0.04113457,176.59,176.56,0.0366135]
[1748385965107,28.38,176.63,176.59,5.6598]
[1748385965306,5.6592,176.62,176.59,5.6598]
[1748385965504,5.6592,176.62,176.55,1.973]
[1748385965707,517.52,176.65,176.55,1.973]
[1748385966205,517.52,176.65,176.6,5.6593]
[1748385966206,5.6589,176.63,176.6,5.6593]
[1748385969407,1.8658,176.69,176.58,0.03649626]
[1748385969614,5.6578,176.66,176.62,0.03715663]
[1748385969907,28.38,176.68,176.62,0.03715663]
[1748385970105,5.6577,176.66,176.63,5.6585]
[1748385970299,5.6577,176.66,176.62,0.03715663]
[1748385970505,28.38,176.68,176.62,0.03715663]
[1748385970706,5.6574,176.67,176.64,5.6581]
[1748385971204,5.6574,176.67,176.64,5.6583]
[1748385971704,28.38,176.71,176.65,5.658]
[1748385971910,28.38,176.71,176.66,0.04272407]
[1748385972407,28.38,176.74,176.66,0.04272407]
[1748385972600,517.46,176.75,176.66,0.04272407]
[1748385973813,5.6561,176.71,176.67,5.6573]
[1748385974313,517.46,176.75,176.66,5.70032407]
[1748385974811,5.6573,176.68,176.66,0.04272407]
[1748385975205,517.46,176.75,176.66,0.04272407]
[1748385975607,517.46,176.75,176.66,109.62272407]
[1748385976209,5.656,176.72,176.68,5.6569]
[1748385976410,5.656,176.72,176.68,5.70004004]
[1748385976811,5.6563,176.71,176.68,0.04314004]
[1748385977009,28.38,176.75,176.68,0.04314004]
[1748385977515,5.6563,176.71,176.68,5.70014004]
[1748385979214,5.6559,176.72,176.69,5.6567]
[1748385980116,28.38,176.75,176.69,5.6567]
[1748385980318,28.38,176.75,176.68,5.70004004]
[1748385981021,5.6562,176.71,176.68,5.70004004]
[1748385981419,28.38,176.75,176.69,5.6567]
[1748385982520,28.38,176.75,176.68,5.70014004]
[1748385982521,5.656,176.72,176.68,5.70014004]
[1748385982720,28.38,176.75,176.68,0.04314004]